bitfinex/quotes_SOLUSD_20241223
["timestamp","ask_amount","ask_price","bid_price","bid_amount"]
[1734938218178,20.0,180.71,180.59,2.6182]
[1734938218383,16.44690219,180.7,180.62,17.27698401]
[1734938218886,16.44690219,180.68,180.6,16.44690219]
[1734938219202,16.44690219,180.68,180.59,2.6182]
[1734938220202,16.44690219,180.68,180.56,16.44690219]
[1734938220410,16.44690219,180.68,180.54,16.44690219]
[1734938220915,16.44690219,180.68,180.58,16.44690219]
[1734938221125,6.6564,180.67,180.54,0.83031847]
[1734938221279,16.44690219,180.62,180.53,22.90300219]
[1734938221717,16.44690219,180.62,180.55,16.44690219]
[1734938222280,16.44690219,180.62,180.52,2.594]
[1734938222808,16.44690219,180.62,180.61,7.374e-05]
[1734938223107,20.0,180.59,180.48,0.7246065]
[1734938223310,16.44690219,180.55,180.48,0.7246065]
[1734938224309,16.44690219,180.53,180.48,0.7246065]
[1734938224516,16.44690219,180.51,180.48,0.7246065]
[1734938224700,16.44690219,180.54,180.48,0.7246065]
[1734938224887,16.44690219,180.49,180.48,0.7246065]
[1734938227305,16.44690219,180.49,180.48,6.5e-06]
[1734938227695,5.5407,180.48,180.35,16.44690219]
[1734938227888,16.44690219,180.42,180.35,16.44690219]
[1734938228285,19.73760866,180.53,180.36,16.44690219]
[1734938228286,16.44690219,180.43,180.36,16.44690219]
[1734938228488,16.44690219,180.45,180.37,0.12549]
[1734938228684,16.44690219,180.47,180.39,0.12549]
[1734938228890,16.44690219,180.46,180.35,0.83123858]
[1734938229092,16.44690219,180.46,180.38,16.44690219]
[1734938229507,16.44690219,180.44,180.36,40.22378619]
[1734938230220,16.44690219,180.42,180.34,16.44690219]
[1734938230511,16.44690219,180.42,180.34,40.22378619]
[1734938230693,16.44690219,180.42,180.34,16.44690219]
[1734938231112,16.44690219,180.44,180.36,16.44690219]
[1734938231300,16.44690219,180.45,180.37,16.44690219]
[1734938231507,16.44690219,180.43,180.36,0.12549]
[1734938231907,16.44690219,180.45,180.37,16.44690219]
[1734938232152,16.44690219,180.47,180.4,0.12549]
[1734938232296,16.44690219,180.47,180.4,23.902374]
[1734938232816,16.44690219,180.51,180.43,16.44690219]
[1734938232995,16.44690219,180.52,180.44,23.902374]
[1734938233519,16.44690219,180.45,180.18,153.146902]
[1734938233708,16.44690219,180.42,180.32,0.83144299]
[1734938234016,16.44690219,180.42,180.34,16.44690219]
[1734938234221,16.44690219,180.42,180.32,16.44690219]
[1734938234915,16.44690219,180.45,180.32,16.44690219]
[1734938234916,16.44690219,180.4,180.32,16.44690219]
[1734938235105,16.44690219,180.42,180.34,16.44690219]
[1734938235300,36.44690219,180.44,180.36,16.44690219]
[1734938236205,16.44690219,180.44,180.35,16.44690219]
[1734938237133,16.44690219,180.44,180.37,16.44690219]
[1734938239731,16.44690219,180.39,180.28,0.7246065]
[1734938240029,16.44690219,180.45,180.36,16.44690219]
[1734938242413,16.44690219,180.45,180.38,16.44690219]
[1734938242932,16.44690219,180.47,180.38,16.44690219]
[1734938243113,6.4428,180.53,180.42,16.44690219]
[1734938243301,6.4428,180.53,180.39,0.83131145]
[1734938243302,16.44690219,180.52,180.44,16.44690219]
[1734938243503,16.44690219,180.5,180.42,16.44690219]
[1734938243705,16.44690219,180.48,180.4,16.44690219]
[1734938243937,16.44690219,180.5,180.4,16.44690219]
[1734938244142,16.44690219,180.5,180.42,16.44690219]
[1734938244837,16.44690219,180.52,180.44,16.44690219]
[1734938245935,5.5383,180.57,180.44,16.44690219]
[1734938245936,16.44690219,180.54,180.46,16.44690219]
[1734938246923,16.44690219,180.56,180.46,16.44690219]
[1734938247123,16.44690219,180.56,180.48,16.44690219]
[1734938247925,6.0269,180.57,180.5,16.44690219]
[1734938248317,16.44690219,180.56,180.48,16.44690219]
[1734938251444,2.5222,180.6,180.48,16.44690219]
[1734938251445,16.44690219,180.58,180.49,23.902374]
[1734938251627,16.44690219,180.58,180.5,16.44690219]
[1734938251942,16.44690219,180.62,180.54,16.44690219]
[1734938252945,5.5345,180.69,180.55,23.902374]
[1734938253237,16.44690219,180.65,180.57,0.12549]
[1734938253437,16.44690219,180.65,180.57,23.902374]
[1734938254036,16.44690219,180.65,180.58,16.44690219]
[1734938254436,16.44690219,180.69,180.6,16.44690219]
[1734938255233,16.44690219,180.69,180.61,23.902374]
[1734938255637,16.44690219,180.64,180.44,164.4092]
[1734938255839,16.44690219,180.62,180.53,16.44690219]
[1734938256036,16.44690219,180.62,180.55,16.44690219]
[1734938256212,16.44690219,180.62,180.54,0.12549]
[1734938256418,16.44690219,180.6,180.53,16.44690219]
[1734938257316,16.44690219,180.62,180.53,16.44690219]
[1734938257842,16.44690219,180.58,180.47,2.6807]
[1734938258041,16.44690219,180.56,180.47,19.12760219]
[1734938258340,6.3341,180.62,180.47,19.12760219]
[1734938258341,16.44690219,180.54,180.47,2.6807]
[1734938258556,16.44690219,180.54,180.45,16.44690219]
[1734938259540,16.44690219,180.54,180.48,0.12549]
[1734938259746,16.44690219,180.6,180.51,16.44690219]
[1734938260143,16.44690219,180.58,180.49,16.44690219]
[1734938260463,16.44690219,180.54,180.42,3.30164686]
[1734938260647,16.44690219,180.54,180.42,18.91770219]
[1734938260648,16.44690219,180.5,180.42,18.91770219]
[1734938262261,16.44690219,180.48,180.4,16.44690219]
[1734938262447,16.44690219,180.46,180.38,16.44690219]
[1734938262651,5.5404,180.49,180.38,16.44690219]
[1734938262839,16.44690219,180.47,180.38,16.44690219]
[1734938263862,16.44690219,180.45,180.38,16.44690219]
[1734938264650,16.44690219,180.47,180.38,16.44690219]
[1734938265034,5.5413,180.46,180.38,16.44690219]
[1734938265361,16.44690219,180.43,180.32,2.5762]
[1734938265666,16.44690219,180.39,180.31,16.44690219]
[1734938266269,16.44690219,180.39,180.29,16.44690219]
[1734938267549,16.44690219,180.37,180.29,16.44690219]
[1734938267752,16.44690219,180.39,180.31,16.44690219]
[1734938268464,23.00930219,180.41,180.33,16.44690219]
[1734938268655,11.6021,180.46,180.35,16.44690219]
[1734938268859,11.6021,180.46,180.29,0.12549]
[1734938268860,16.44690219,180.45,180.37,16.44690219]
[1734938269066,16.44690219,180.43,180.35,16.44690219]
[1734938273174,5.5404,180.5,180.39,16.44690219]
[1734938273473,21.98730219,180.5,180.41,16.44690219]
[1734938273850,16.44690219,180.5,180.43,16.44690219]
[1734938274876,16.44690219,180.48,180.39,16.44690219]
[1734938275057,16.44690219,180.43,180.3,2.5508]
[1734938275260,16.44690219,180.41,180.33,16.44690219]
[1734938277278,16.44690219,180.41,180.33,16.74961699]
[1734938280602,16.44690219,180.37,180.33,0.3027148]
[1734938280763,5.5423,180.43,180.33,16.74961699]
[1734938281067,16.44690219,180.42,180.33,16.74961699]
[1734938281766,16.44690219,180.42,180.35,16.44690219]
[1734938283207,16.44690219,180.4,180.33,16.74961699]
[1734938283795,16.44690219,180.39,180.33,0.3027148]
[1734938283962,16.44690219,180.37,180.33,0.3027148]
[1734938284288,16.44690219,180.38,180.33,0.3027148]
[1734938284876,16.44690219,180.4,180.33,0.3027148]
[1734938286168,16.44690219,180.38,180.33,0.3027148]
[1734938288890,6.376,180.44,180.36,16.44690219]
[1734938289091,21.98830219,180.46,180.36,16.44690219]
[1734938289291,16.44690219,180.46,180.38,16.44690219]
[1734938289472,16.44690219,180.44,180.36,16.44690219]
[1734938289670,6.0825,180.48,180.34,16.44690219]
[1734938289671,16.44690219,180.42,180.34,16.44690219]
[1734938290288,16.44690219,180.42,180.33,0.3027148]
[1734938291096,16.44690219,180.4,180.33,0.3027148]
[1734938291301,16.44690219,180.42,180.34,16.44690219]
[1734938292178,16.44690219,180.4,180.33,0.3027148]
[1734938295195,16.44690219,180.38,180.33,0.3027148]
[1734938296087,16.44690219,180.36,180.33,0.3027148]
[1734938297185,5.5447,180.35,180.33,0.3027148]
[1734938297504,16.44690219,180.34,180.33,0.3027148]
[1734938298082,5.5447,180.35,180.33,0.3027148]
[1734938298282,16.44690219,180.38,180.33,0.3027148]
[1734938298985,16.44690219,180.36,180.33,0.3027148]
[1734938301003,16.44690219,180.34,180.33,0.3027148]
[1734938307318,16.44690219,180.34,180.33,1.48e-05]
[1734938310996,22.52290219,180.34,180.33,1.48e-05]
[1734938311202,16.44690219,180.34,180.33,1.48e-05]
[1734938313319,36.44690219,180.34,180.33,1.48e-05]
[1734938315614,23.776884,180.32,180.22,0.6768751]
[1734938315798,16.44690219,180.24,180.22,0.6768751]
[1734938316194,16.44690219,180.26,180.22,0.6768751]
[1734938316533,16.44690219,180.24,180.22,0.6768751]
[1734938324122,5.5484,180.23,180.22,0.6768751]
[1734938324352,29.450774,180.23,180.1,9.0031]
[1734938324511,16.44690219,180.16,180.1,9.0031]
[1734938324830,16.44690219,180.15,180.1,9.0031]
[1734938325034,16.44690219,180.14,180.1,9.0031]
[1734938325206,16.44690219,180.12,180.04,11.22736085]
[1734938325407,16.44690219,180.14,180.06,16.44690219]
[1734938327020,16.44690219,180.14,180.05,16.44690219]
[1734938327207,16.44690219,180.12,180.05,16.44690219]
[1734938327804,16.44690219,180.1,180.04,2.6802]
[1734938329137,23.776884,180.13,180.03,0.6768751]
[1734938329430,16.44690219,180.06,180.03,0.6768751]
[1734938329617,16.44690219,180.08,180.03,0.6768751]
[1734938330421,16.44690219,180.06,180.03,0.6768751]
[1734938331015,16.44690219,180.04,180.03,0.6768751]
[1734938333622,16.44690219,180.08,180.03,0.6768751]
[1734938334220,2.4934,180.2,180.06,16.44690219]
[1734938334422,2.4934,180.2,180.11,16.44690219]
[1734938334626,16.44690219,180.19,180.11,16.44690219]
[1734938335324,16.44690219,180.17,180.09,16.44690219]
[1734938336148,16.44690219,180.17,180.07,15.37371304]
[1734938336336,16.44690219,180.15,180.06,16.44690219]
[1734938336534,16.44690219,180.15,180.08,16.44690219]
[1734938336735,16.44690219,180.17,180.08,16.44690219]
[1734938337034,16.44690219,180.17,180.1,16.44690219]
[1734938337944,16.44690219,180.19,180.12,16.44690219]
[1734938338124,16.44690219,180.21,180.12,16.44690219]
[1734938338655,16.44690219,180.21,180.05,23.776884]
[1734938338948,16.44690219,180.21,180.12,16.44690219]
[1734938340449,16.44690219,180.21,180.14,16.44690219]
[1734938340751,16.44690219,180.21,180.12,16.44690219]
[1734938341467,2.5927,180.24,180.18,16.44690219]
[1734938341759,6.612,180.26,180.21,16.44690219]
[1734938342727,19.05860219,180.29,180.21,16.44690219]
[1734938343147,2.6117,180.29,180.23,16.44690219]
[1734938343354,2.6117,180.29,180.22,16.44690219]
[1734938343556,23.09610219,180.3,180.22,16.44690219]
[1734938344056,16.44690219,180.29,180.22,16.44690219]
[1734938344356,16.44690219,180.27,180.19,16.44690219]
[1734938344660,16.44690219,180.27,180.11,6.5379]
[1734938344661,16.44690219,180.21,180.13,16.44690219]
[1734938346132,6.178,180.2,180.1,2.4804]
[1734938346331,16.44690219,180.19,180.1,16.44690219]
[1734938346932,16.44690219,180.17,180.1,16.44690219]
[1734938347346,16.44690219,180.19,180.12,16.44690219]
[1734938347555,6.178,180.2,180.12,16.44690219]
[1734938347851,6.178,180.2,180.16,16.44690219]
[1734938348457,16.44690219,180.24,180.16,16.44690219]
[1734938349458,16.44690219,180.2,180.12,16.44690219]
[1734938349756,16.44690219,180.18,180.1,16.44690219]
[1734938349947,16.44690219,180.16,180.08,16.44690219]
[1734938350556,6.3847,180.17,180.1,16.44690219]
[1734938352142,6.3847,180.17,180.12,16.44690219]
[1734938354142,16.446902,180.19,180.14,16.44690219]
[1734938354442,16.446902,180.19,180.16,16.44690219]
[1734938354665,16.446902,180.19,180.06,3.37751265]
[1734938354867,16.44690219,180.2,180.12,16.44690219]
[1734938355050,16.44690219,180.2,180.1,16.44690219]
[1734938355849,16.44690219,180.18,180.1,16.44690219]
[1734938356167,16.44690219,180.16,180.03,7.08019341]
[1734938356477,6.1953,180.15,180.06,16.44690219]
[1734938356647,6.1953,180.15,180.08,16.44690219]
[1734938358569,6.1953,180.15,180.1,16.44690219]
[1734938359154,6.1953,180.15,180.08,16.44690219]
[1734938359352,6.1953,180.15,180.03,0.6768751]
[1734938359353,16.44690219,180.14,180.03,0.6768751]
[1734938359550,16.44690219,180.12,180.03,0.6768751]
[1734938359864,16.44690219,180.1,180.03,0.6768751]
[1734938360268,0.12549,180.14,180.03,0.6768751]
[1734938360269,16.44690219,180.08,180.03,0.6768751]
[1734938360449,6.0017,180.07,180.03,0.6768751]
[1734938361066,6.0017,180.07,180.03,17.12377729]
[1734938361269,6.0017,180.07,180.05,16.44690219]
[1734938361674,6.4871,180.11,180.05,16.44690219]
[1734938361972,6.4871,180.11,180.07,16.44690219]
[1734938363256,6.4871,180.11,180.03,0.6768751]
[1734938363462,6.4871,180.11,180.05,16.44690219]
[1734938363656,6.4871,180.11,180.07,16.44690219]
[1734938364378,6.4871,180.11,180.1,16.44690219]
[1734938365275,6.268,180.16,180.1,16.44690219]
[1734938365480,6.268,180.16,180.13,16.44690219]
[1734938366784,6.268,180.16,180.11,16.44690219]
[1734938366971,6.268,180.16,180.03,0.6768751]
[1734938367165,22.71490219,180.16,180.08,16.44690219]
[1734938367777,6.268,180.16,180.08,16.44690219]
[1734938369263,6.268,180.16,180.1,16.44690219]
[1734938369652,20.0,180.12,180.06,16.44690219]
[1734938374179,20.0,180.12,180.03,0.6768751]
[1734938374358,16.44690219,180.15,180.08,16.44690219]
[1734938374558,6.268,180.16,180.08,16.44690219]
[1734938374793,6.268,180.16,180.1,16.44690219]
[1734938375680,6.268,180.16,180.08,16.44690219]
[1734938379463,16.57239219,180.15,180.06,16.44690219]
[1734938379683,16.44690219,180.13,180.05,16.44690219]
[1734938379869,20.0,180.11,180.05,16.44690219]
[1734938380783,6.268,180.16,180.07,16.44690219]
[1734938380991,6.268,180.16,180.09,16.44690219]
[1734938381967,6.268,180.16,180.03,0.6768751]
[1734938381968,16.44690219,180.15,180.07,16.44690219]
[1734938382182,45.77478619,180.15,180.07,16.44690219]
[1734938383665,20.0,180.12,180.03,0.6768751]
[1734938383864,20.0,180.12,180.04,16.44690219]
[1734938387698,20.0,180.12,180.03,0.6768751]
[1734938387993,20.0,180.12,180.05,16.44690219]
[1734938390293,20.0,180.11,180.05,16.44690219]
[1734938391374,8.8029,180.1,180.03,17.12377729]
[1734938392493,25.24980219,180.1,180.03,0.6768751]
[1734938392681,16.44690219,180.07,180.03,0.6768751]
[1734938396300,40.22378619,180.09,180.03,0.6768751]
[1734938396975,0.12549,180.08,180.03,0.6768751]
[1734938397169,40.22378619,180.09,180.03,0.6768751]
[1734938397602,0.12549,180.08,180.03,0.6768751]
[1734938398183,20.0,180.06,180.03,0.6768751]
[1734938399477,20.0,180.07,180.04,16.44690219]
[1734938399677,20.0,180.07,180.03,17.12377729]
[1734938400600,8.8029,180.1,180.03,17.12377729]
[1734938401087,8.8029,180.1,180.05,16.44690219]
[1734938401585,8.8029,180.1,180.03,17.12377729]
[1734938402291,20.0,180.11,180.07,16.44690219]
[1734938402498,8.34325582,180.15,180.03,0.6768751]
[1734938402679,8.34325582,180.15,180.13,16.44690219]
[1734938402878,8.34325582,180.15,180.06,2.5943]
[1734938403076,20.0,180.16,180.09,16.44690219]
[1734938403501,20.0,180.16,180.04,6.36316138]
[1734938403502,16.57239219,180.15,180.07,16.44690219]
[1734938403796,16.57239219,180.15,180.03,0.6768751]
[1734938403797,16.44690219,180.11,180.03,0.6768751]
[1734938403978,16.44690219,180.09,180.03,0.6768751]
[1734938404679,16.57239219,180.11,180.03,17.12377729]
[1734938404917,8.9323,180.12,180.07,16.44690219]
[1734938405206,8.34325582,180.14,180.09,16.44690219]
[1734938405404,20.0,180.16,180.09,16.44690219]
[1734938405405,8.34325582,180.16,180.09,16.44690219]
[1734938405711,8.34325582,180.16,180.11,16.44690219]
[1734938406006,8.6939,180.17,180.11,16.44690219]
[1734938406214,16.44690219,180.15,180.07,16.44690219]
[1734938406528,0.12549,180.1,180.03,17.12377729]
[1734938406709,16.44690219,180.11,180.03,17.12377729]
[1734938407021,16.44690219,180.11,180.03,0.6768751]
[1734938407180,16.44690219,180.11,180.03,17.12377729]
[1734938407875,8.34325582,180.15,180.03,17.12377729]
[1734938407876,16.44690219,180.13,180.03,17.12377729]
[1734938408096,20.0,180.1,180.05,16.44690219]
[1734938408276,24.79015801,180.15,180.07,16.44690219]
[1734938408678,20.0,180.12,180.07,16.44690219]
[1734938409404,25.14080219,180.17,180.09,16.44690219]
[1734938409799,6.1246,180.17,180.11,16.44690219]
[1734938410302,6.1246,180.17,180.13,16.44690219]
[1734938410608,8.34325582,180.19,180.15,16.44690219]
[1734938410902,25.82582278,180.2,180.15,16.44690219]
[1734938411079,16.44690219,180.19,180.11,16.44690219]
[1734938411274,16.44690219,180.19,180.07,2.5387]
[1734938411605,16.44690219,180.19,180.12,16.44690219]
[1734938412086,25.82582278,180.2,180.14,16.44690219]
[1734938412792,25.82582278,180.2,180.18,16.44690219]
[1734938413194,25.82582278,180.2,180.16,16.44690219]
[1734938414703,8.34325582,180.26,180.18,16.44690219]
[1734938414911,8.34325582,180.26,180.2,16.44690219]
[1734938415802,22.58120219,180.27,180.2,16.44690219]
[1734938416314,6.1343,180.27,180.2,16.44690219]
[1734938417121,6.1343,180.27,180.22,16.44690219]
[1734938417439,22.58120219,180.27,180.2,16.44690219]
[1734938417718,16.44690219,180.27,180.2,16.44690219]
[1734938417924,20.0,180.27,180.2,16.44690219]
[1734938418105,20.0,180.26,180.2,16.44690219]
[1734938418311,16.44690219,180.29,180.22,16.44690219]
[1734938419142,20.0,180.28,180.22,16.44690219]
[1734938421911,6.4232,180.32,180.27,16.44690219]
[1734938422422,24.79015801,180.35,180.27,16.44690219]
[1734938422600,8.34325582,180.35,180.29,16.44690219]
[1734938422800,8.34325582,180.35,180.28,16.44690219]
[1734938422995,16.44690219,180.34,180.26,16.44690219]
[1734938423207,16.44690219,180.33,180.25,16.44690219]
[1734938423617,16.44690219,180.34,180.26,16.44690219]
[1734938423918,20.0,180.33,180.27,16.44690219]
[1734938424134,6.1366,180.36,180.3,16.44690219]
[1734938424506,25.80466611,180.37,180.31,16.44690219]
[1734938424832,25.80466611,180.37,180.32,16.44690219]
[1734938425341,42.2515683,180.37,180.29,16.44690219]
[1734938425695,20.0,180.34,180.29,16.44690219]
[1734938426120,42.2515683,180.37,180.3,16.44690219]
[1734938426422,25.80466611,180.37,180.32,16.44690219]
[1734938426609,25.80466611,180.37,180.33,16.44690219]
[1734938426809,25.80466611,180.37,180.34,16.44690219]
[1734938427005,25.80466611,180.37,180.35,16.44690219]
[1734938427399,25.80466611,180.37,180.21,6.1876]
[1734938427725,16.44690219,180.37,180.29,16.44690219]
[1734938428427,20.0,180.34,180.29,16.44690219]
[1734938428725,16.44690219,180.35,180.27,16.44690219]
[1734938429234,38.88240219,180.37,180.29,16.44690219]
[1734938429916,20.0,180.33,180.27,16.44690219]
[1734938430115,16.44690219,180.35,180.27,16.44690219]
[1734938430321,20.0,180.3,180.25,16.44690219]
[1734938430825,20.0,180.3,180.23,16.44690219]
[1734938431209,20.0,180.3,180.25,16.44690219]
[1734938431404,6.6055,180.36,180.19,0.83237334]
[1734938431611,6.6055,180.36,180.32,16.44690219]
[1734938431919,22.67130219,180.41,180.26,2.4848]
[1734938432242,6.2244,180.41,180.34,16.44690219]
[1734938432405,6.2244,180.41,180.36,16.44690219]
[1734938432609,16.446902,180.42,180.36,16.44690219]
[1734938432932,16.44690219,180.43,180.36,16.44690219]
[1734938433618,42.24012752,180.44,180.36,16.44690219]
[1734938434405,25.79322533,180.44,180.37,16.44690219]
[1734938434609,42.24012752,180.44,180.37,16.44690219]
[1734938435103,16.44690219,180.41,180.26,2.4848]
[1734938435343,16.44690219,180.41,180.31,16.44690219]
[1734938435344,16.44690219,180.39,180.31,16.44690219]
[1734938436735,20.0,180.41,180.27,16.44690219]
[1734938436922,36.44690219,180.4,180.32,16.44690219]
[1734938441939,36.44690219,180.4,180.27,16.44690219]
[1734938441940,16.44690219,180.42,180.34,16.44690219]
[1734938442158,42.24012752,180.44,180.36,16.44690219]
[1734938442715,25.79322533,180.44,180.37,16.44690219]
[1734938443036,42.24012752,180.44,180.36,16.44690219]
[1734938443241,25.79322533,180.44,180.41,16.44690219]
[1734938444335,41.68330419,180.51,180.43,16.44690219]
[1734938444536,25.23640219,180.51,180.43,16.44690219]
[1734938444935,22.74890219,180.51,180.43,16.44690219]
[1734938445640,25.37860219,180.55,180.47,16.44690219]
[1734938445840,39.20520519,180.55,180.47,16.44690219]
[1734938446044,22.75830219,180.55,180.47,16.44690219]
[1734938446416,6.3114,180.55,180.49,16.44690219]
[1734938446625,16.44690219,180.57,180.49,16.44690219]
[1734938447039,16.44690219,180.57,180.45,16.44690219]
[1734938447040,22.75830219,180.59,180.51,16.44690219]
[1734938447243,6.3114,180.59,180.53,16.44690219]
[1734938447625,20.0,180.56,180.51,16.44690219]
[1734938448345,16.44690219,180.62,180.55,16.44690219]
[1734938448548,6.5324,180.63,180.57,16.44690219]
[1734938448921,16.44690219,180.65,180.58,16.44690219]
[1734938449450,6.8344751,180.67,180.56,16.44690219]
[1734938449451,16.44690219,180.63,180.56,16.44690219]
[1734938449949,16.44690219,180.65,180.56,16.44690219]
[1734938450148,16.44690219,180.65,180.58,16.44690219]
[1734938450441,6.8344751,180.67,180.6,16.44690219]
[1734938451347,6.8344751,180.67,180.48,2.5539]
[1734938451348,16.44690219,180.66,180.58,16.44690219]
[1734938451651,16.44690219,180.63,180.55,16.44690219]
[1734938451835,16.44690219,180.63,180.57,16.44690219]
[1734938452150,16.44690219,180.65,180.57,16.44690219]
[1734938452446,20.0,180.62,180.57,16.44690219]
[1734938454061,16.44690219,180.63,180.55,16.44690219]
[1734938455644,20.0,180.6,180.55,16.44690219]
[1734938456647,20.0,180.58,180.53,16.44690219]
[1734938456824,20.0,180.58,180.51,16.44690219]
[1734938457546,20.0,180.55,180.49,16.44690219]
[1734938457751,20.0,180.55,180.51,16.44690219]
[1734938459550,20.0,180.55,180.53,16.44690219]
[1734938460354,16.44690219,180.63,180.53,16.44690219]
[1734938460543,16.44690219,180.65,180.56,16.44690219]
[1734938460752,16.44690219,180.65,180.58,16.44690219]
[1734938461549,23.28137729,180.67,180.58,16.44690219]
[1734938461734,16.44690219,180.65,180.58,16.44690219]
[1734938462048,23.28137729,180.67,180.58,16.44690219]
[1734938462227,23.28137729,180.67,180.6,16.44690219]
[1734938463057,0.6768751,180.67,180.62,16.44690219]
[1734938464071,0.6768751,180.67,180.66,16.44690219]
[1734938464354,0.6768751,180.67,180.66,22.72180219]
[1734938464559,22.78790219,180.81,180.67,1.5666]
[1734938464875,6.341,180.81,180.76,16.44690219]
[1734938465038,17.12377729,180.85,180.78,16.44690219]
[1734938465436,0.6768751,180.85,180.78,16.44690219]
[1734938465828,0.6768751,180.85,180.8,16.44690219]
[1734938466260,0.6768751,180.85,180.82,16.44690219]
[1734938466625,0.6768751,180.85,180.84,16.44690219]
[1734938469272,0.6768751,180.85,180.79,1.5666]
[1734938469556,0.6768751,180.85,180.81,16.44690219]
[1734938469846,0.6768751,180.85,180.73,6.3802]
[1734938469847,20.6768751,180.85,180.79,16.44690219]
[1734938470046,20.0,180.83,180.79,16.44690219]
[1734938470681,0.6768751,180.85,180.79,16.44690219]
[1734938470682,20.0,180.84,180.79,16.44690219]
[1734938471971,20.0,180.84,180.73,6.3802]
[1734938471972,20.0,180.84,180.81,16.44690219]
[1734938472267,0.6768751,180.85,180.83,16.44690219]
[1734938473257,0.6768751,180.85,180.83,18.06950219]
[1734938473556,16.446902,180.98,180.92,16.44690219]
[1734938473858,16.44690219,180.99,180.92,16.44690219]
[1734938474155,32.89380419,180.99,180.92,16.44690219]
[1734938474958,16.44690219,180.99,180.92,16.44690219]
[1734938475349,16.446903,180.98,180.92,16.44690219]
[1734938475549,16.44690219,181.01,180.92,16.44690219]
[1734938475735,16.446902,181.01,180.94,16.44690219]
[1734938475937,16.446902,181.01,180.98,16.44690219]
[1734938476135,0.6768751,181.04,180.98,16.44690219]
[1734938476443,17.1237771,181.04,180.98,16.44690219]
[1734938476836,0.6768751,181.04,180.98,16.44690219]
[1734938477527,17.12377729,181.04,180.96,16.44690219]
[1734938477728,17.12377729,181.04,180.94,16.44690219]
[1734938477729,16.44690219,181.02,180.94,16.44690219]
[1734938478249,23.776884,181.02,180.94,16.44690219]
[1734938478964,20.0,180.99,180.94,16.44690219]
[1734938479258,20.0,180.99,180.84,6.5441]
[1734938479259,23.776884,180.98,180.92,16.44690219]
[1734938479435,20.0,180.99,180.92,16.44690219]
[1734938479635,20.0,180.99,180.94,16.44690219]
[1734938480061,20.0,180.95,180.92,16.44690219]
[1734938480235,20.0,180.95,180.9,16.44690219]
[1734938480636,20.0,180.95,180.92,16.44690219]
[1734938481041,16.44690219,181.0,180.92,16.44690219]
[1734938481042,20.0,180.97,180.92,16.44690219]
[1734938481240,20.0,180.96,180.92,16.44690219]
[1734938481656,20.0,180.95,180.9,16.44690219]
[1734938482162,20.0,180.95,180.88,16.44690219]
[1734938482651,20.0,180.93,180.88,16.44690219]
[1734938483047,20.0,180.89,180.84,16.44690219]
[1734938483248,20.0,180.89,180.82,16.44690219]
[1734938483454,20.0,180.85,180.8,16.44690219]
[1734938483770,20.0,180.85,180.78,16.44690219]
[1734938483935,16.44690219,180.88,180.72,16.44690219]
[1734938483936,20.0,180.83,180.76,16.44690219]
[1734938484337,20.0,180.83,180.78,16.44690219]
[1734938484558,20.0,180.83,180.8,16.44690219]
[1734938484768,20.0,180.85,180.8,16.44690219]
[1734938485963,20.0,180.89,180.8,16.44690219]
[1734938486142,20.0,180.87,180.82,16.44690219]
[1734938486349,16.44690219,180.92,180.84,16.44690219]
[1734938486749,16.44690219,180.9,180.82,16.44690219]
[1734938486945,16.44690219,180.88,180.8,16.44690219]
[1734938487352,0.12549,180.87,180.8,16.44690219]
[1734938487670,20.0,180.83,180.78,16.44690219]
[1734938488882,20.0,180.83,180.8,16.44690219]
[1734938489050,20.0,180.84,180.8,16.44690219]
[1734938489441,16.44690219,180.92,180.82,16.44690219]
[1734938489752,16.44690219,180.94,180.87,16.44690219]
[1734938489978,16.44690219,180.96,180.87,16.44690219]
[1734938491551,0.12549,180.95,180.87,16.44690219]
[1734938491747,16.44690219,180.88,180.74,6.0003]
[1734938492050,11.0512,180.98,180.84,16.44690219]
[1734938492051,16.44690219,180.92,180.84,16.44690219]
[1734938492246,20.0,180.88,180.84,16.44690219]
[1734938495548,23.776884,180.87,180.82,16.44690219]
[1734938495853,20.0,180.87,180.82,16.44690219]
[1734938497675,23.776884,180.86,180.8,16.44690219]
[1734938497866,20.0,180.83,180.78,16.44690219]
[1734938498381,20.0,180.79,180.78,16.44690219]
[1734938498550,20.0,180.79,180.76,16.44690219]
[1734938499052,20.0,180.81,180.76,16.44690219]
[1734938499254,20.0,180.85,180.8,16.44690219]
[1734938499461,20.0,180.83,180.8,16.44690219]
[1734938500568,20.0,180.85,180.8,16.44690219]
[1734938502775,20.0,180.79,180.71,1.6281]
[1734938502957,20.0,180.77,180.73,16.44690219]
[1734938503679,20.0,180.79,180.73,16.44690219]
[1734938503884,20.0,180.71,180.69,16.44690219]